bitfinex/quotes_ETHUSD_20251111
["timestamp","ask_amount","ask_price","bid_price","bid_amount"]
[1762838930494,0.501,3564.6,3564.5,3.28084255]
[1762838930903,0.501,3564.6,3563.8,0.002]
[1762838931198,0.501,3564.6,3562.1,0.01]
[1762838931199,1.665216,3563.1,3562.1,0.01]
[1762838931363,0.5,3562.8,3562.1,0.1653]
[1762838931560,1.161,3562.8,3562.1,0.1653]
[1762838931998,4.92658118,3562.8,3562.1,0.01]
[1762838933304,1.6532,3562.8,3562.1,2.97257831]
[1762838933464,1.161,3562.8,3562.2,3.27781968]
[1762838933669,1.161,3562.8,3562.4,2.80702326]
[1762838933864,1.161,3562.8,3562.3,2.80714835]
[1762838934105,1.161,3562.8,3562.4,2.80706838]
[1762838934901,1.161,3562.8,3562.2,0.4706]
[1762838935307,1.161,3562.8,3562.6,2.80686792]
[1762838936268,1.161,3562.8,3562.2,0.4706]
[1762838936269,0.5,3562.8,3562.7,2.80885996]
[1762838936473,0.5,3562.8,3562.7,0.002]
[1762838936791,0.5,3562.8,3562.7,2.80885996]
[1762838938196,0.5,3562.8,3562.7,0.002]
[1762838938396,0.5,3562.8,3562.7,2.80885996]
[1762838938831,0.5,3562.8,3562.7,0.002]
[1762838939123,0.9631,3562.8,3562.7,0.002]
[1762838939325,0.5,3562.8,3562.7,2.80885996]
[1762838939509,0.5,3562.8,3562.7,3.28095996]
[1762838940435,0.5,3562.8,3562.7,0.4741]
[1762838940844,0.5,3562.8,3562.7,3.28095996]
[1762838941946,0.5,3562.8,3562.7,0.4741]
[1762838942235,0.9631,3562.8,3562.7,0.002]
[1762838942544,1.4179,3562.8,3562.7,0.002]
[1762838942696,0.5,3562.8,3562.7,3.77865996]
[1762838943208,0.661,3563.5,3562.7,0.9718]
[1762838943425,0.661,3563.5,3563.1,3.27864486]
[1762838943426,0.5,3563.2,3563.1,3.27864486]
[1762838943745,0.5,3563.2,3563.1,2.80654486]
[1762838944115,0.5,3563.2,3563.1,3.96074486]
[1762838948820,0.5,3563.2,3563.1,3.46304486]
[1762838949153,0.5,3563.2,3562.7,0.002]
[1762838949154,0.5,3562.8,3562.7,0.002]
[1762838949352,0.5,3562.8,3562.7,2.80878882]
[1762838950260,0.9631,3562.8,3562.7,2.80878882]
[1762838950919,0.9631,3562.8,3562.7,0.002]
[1762838951140,0.9631,3562.8,3562.7,2.80885996]
[1762838951356,0.5,3562.8,3562.7,3.28095996]
[1762838952448,0.5,3562.8,3562.7,2.80885996]
[1762838953088,0.5,3562.8,3562.7,3.28095996]
[1762838953686,0.5,3562.8,3562.7,2.80885996]
[1762838954686,0.5,3562.8,3562.7,0.002]
[1762838954687,0.4631,3562.8,3562.7,0.002]
[1762838954992,1.4179,3562.8,3562.7,0.002]
[1762838955697,1.4179,3562.8,3562.7,2.80885996]
[1762838956299,1.4179,3562.8,3562.7,0.002]
[1762838956598,1.4179,3562.8,3562.7,2.80885996]
[1762838956797,1.4179,3562.8,3562.7,0.002]
[1762838957662,1.4179,3562.8,3562.7,2.80885996]
[1762838957858,1.4179,3562.8,3562.7,0.002]
[1762838958301,0.9631,3562.8,3562.7,2.80885996]
[1762838959100,0.5,3562.8,3562.7,0.002]
[1762838959303,0.9631,3562.8,3562.7,2.80885996]
[1762838959665,0.5,3562.8,3562.7,2.80885996]
[1762838961209,0.9631,3562.8,3562.7,2.80885996]
[1762838962377,1.4179,3562.8,3562.7,2.80885996]
[1762838962571,0.661,3563.1,3562.9,2.80665641]
[1762838962775,0.5,3563.0,3562.9,2.80665641]
[1762838962976,0.9631,3563.0,3562.9,2.80665641]
[1762838963171,0.9631,3563.0,3562.8,2.80675696]
[1762838963374,0.5,3562.9,3562.8,2.80675696]
[1762838963695,0.746,3562.9,3562.8,2.80675696]
[1762838963894,0.246,3562.9,3562.7,0.002]
[1762838964215,0.9631,3562.8,3562.7,2.80883257]
[1762838965398,0.5,3562.8,3562.7,2.80883257]
[1762838965904,0.9652,3562.8,3562.7,0.002]
[1762838966108,1.4385,3562.8,3562.7,2.80885996]
[1762838966265,0.9652,3562.8,3562.7,2.80885996]
[1762838966713,0.5,3562.8,3562.7,2.80885996]
[1762838966924,0.5,3562.8,3562.7,3.30215996]
[1762838967577,0.5,3562.8,3562.7,2.80885996]
[1762838968340,0.5,3562.8,3562.7,3.30215996]
[1762838969038,0.5,3562.8,3562.7,2.80885996]
[1762838969253,0.9652,3562.8,3562.7,2.80885996]
[1762838969738,0.9652,3562.8,3562.7,0.002]
[1762838971000,0.9652,3562.8,3562.7,2.80885996]
[1762838972304,1.4385,3562.8,3562.7,0.002]
[1762838973440,0.9652,3562.8,3562.7,0.002]
[1762838973641,0.5,3562.8,3562.7,2.80885996]
[1762838973845,0.5,3562.8,3562.7,3.30215996]
[1762838976305,0.5,3562.8,3562.7,3.76335996]
[1762838976538,0.501,3563.1,3563.0,2.80662363]
[1762838976739,0.001,3563.1,3563.0,3.96092363]
[1762838976938,0.001,3563.1,3563.0,4.82762763]
[1762838977139,0.001,3563.1,3563.0,6.08733963]
[1762838981410,0.001,3563.9,3563.8,3.2114976]
[1762838981619,0.001,3563.9,3563.8,7.90014801]
[1762838981944,0.001,3563.9,3563.8,8.36134801]
[1762838983850,0.001,3563.9,3563.8,4.3657976]
[1762838984417,0.001,3563.9,3563.8,4.8269976]
[1762838989751,0.001,3563.9,3563.8,4.3657976]
[1762838990568,0.001,3563.9,3563.8,4.8269976]
[1762838991492,0.001,3563.9,3563.8,6.0867096]
[1762838992509,0.001,3564.6,3564.5,3.21094655]
[1762838992799,0.001,3564.6,3564.5,8.09161979]
[1762838993312,0.001,3564.6,3564.5,8.55281979]
[1762838997373,0.001,3564.6,3564.5,9.81253179]
[1762838997790,0.001,3565.4,3565.3,3.21031705]
[1762838998069,0.001,3565.4,3565.3,8.57339029]
[1762838998275,0.001,3565.4,3565.3,9.83310229]
[1762839000301,0.001,3565.4,3565.3,6.10572905]
[1762839000617,0.001,3565.4,3565.3,9.83310229]
[1762839000966,0.001,3565.4,3565.3,9.34050229]
[1762839001191,0.001,3565.4,3565.3,9.83310229]
[1762839003611,0.001,3565.4,3565.3,9.34050229]
[1762839004507,0.001,3565.4,3565.3,9.83310229]
[1762839006141,0.4706,3565.4,3565.3,2.80481305]
[1762839006364,1.4467,3565.4,3565.3,2.80481305]
[1762839008331,0.001,3565.4,3565.3,4.18601705]
[1762839008933,0.001,3565.4,3565.3,11.32144035]
[1762839010221,0.001,3565.4,3565.3,7.8909847]
[1762839010416,0.001,3565.4,3565.3,8.3835847]
[1762839010618,0.001,3565.4,3565.3,7.8909847]
[1762839011135,0.001,3565.4,3565.3,4.47002905]
[1762839011332,0.001,3565.4,3565.3,4.95312905]
[1762839012538,0.4706,3565.4,3565.3,3.21031705]
[1762839012709,0.4706,3565.4,3564.2,3.0814]
[1762839012710,0.9467,3565.4,3564.2,0.1264]
[1762839012909,0.5,3564.9,3563.8,3.72616958]
[1762839013115,0.5,3564.9,3564.8,2.80520646]
[1762839013313,0.9761,3564.9,3564.8,2.80520646]
[1762839013513,1.6409,3564.9,3564.4,0.659]
[1762839013713,0.9696,3564.5,3564.4,3.46451496]
[1762839014325,1.4457,3564.5,3564.4,3.46451496]
[1762839014525,1.4457,3564.5,3564.4,2.80551496]
[1762839016344,1.4457,3564.5,3564.2,0.405504]
[1762839016505,0.4761,3564.4,3564.2,3.21117349]
[1762839016700,0.4696,3564.3,3564.2,4.47088549]
[1762839017136,0.9457,3564.3,3564.2,3.21117349]
[1762839017740,0.9457,3564.3,3564.2,2.80567869]
[1762839018246,1.4457,3564.3,3564.2,2.80567869]
[1762839019216,0.9457,3564.3,3564.2,2.80567869]
[1762839020922,0.9457,3564.3,3564.1,0.002]
[1762839021250,0.1952,3564.9,3564.7,2.80523096]
[1762839021419,0.5,3564.5,3564.4,2.80546684]
[1762839021914,0.9457,3564.5,3564.1,0.002]
[1762839022115,0.4696,3564.2,3564.1,2.80775741]
[1762839022734,0.4696,3564.2,3564.1,0.002]
[1762839022924,1.4457,3564.2,3564.1,0.002]
[1762839023451,1.4457,3564.2,3564.1,2.80775741]
[1762839024554,0.4761,3564.8,3564.6,2.80531933]
[1762839024756,0.5,3564.7,3564.6,2.80531933]
[1762839024929,0.9696,3564.7,3564.6,2.80531933]
[1762839025133,1.918712,3565.7,3565.1,2.80496655]
[1762839025462,0.5,3565.2,3565.1,2.80496655]
[1762839025639,0.9908,3565.4,3565.3,2.80481305]
[1762839025838,0.001,3565.4,3565.3,2.80481305]
[1762839026154,0.9764,3565.4,3565.3,2.80481305]
[1762839026459,0.001,3565.4,3565.3,3.29091305]
[1762839026646,0.4866,3565.4,3565.3,2.80481305]
[1762839027680,0.9764,3565.4,3565.3,2.80481305]
[1762839027831,1.4764,3565.4,3565.3,2.80481305]
[1762839028031,1.4764,3565.4,3564.9,0.659]
[1762839028032,0.5,3565.3,3564.9,0.659]
[1762839028250,0.5,3565.1,3565.0,2.80504908]
[1762839028464,0.5,3565.1,3564.9,0.659]
[1762839028465,0.9856,3565.0,3564.9,3.46412224]
[1762839028873,1.4754,3565.0,3564.9,3.46412224]
[1762839029176,1.4754,3565.0,3564.8,2.80514538]
[1762839029400,0.6682,3564.8,3564.7,2.8052815]
[1762839029590,0.5,3564.8,3564.7,2.8052815]
[1762839029882,1.4754,3564.8,3564.7,2.8052815]
[1762839030080,1.4754,3564.8,3564.4,3.46451652]
[1762839030387,0.1967,3564.9,3564.4,3.46451652]
[1762839030388,0.4856,3564.5,3564.4,3.46451652]
[1762839031992,1.4754,3564.5,3564.4,3.46452126]
[1762839032289,1.4754,3564.5,3564.4,0.659]
[1762839032503,1.4754,3564.5,3564.4,3.46452126]
[1762839033189,0.9754,3564.5,3564.1,0.002]
[1762839033373,0.4856,3564.2,3564.1,2.80775741]
[1762839033579,0.9856,3564.2,3564.1,0.002]
[1762839033890,1.4754,3564.2,3564.1,0.002]
[1762839034096,1.4754,3564.2,3564.1,2.80775741]
[1762839034503,1.4754,3564.2,3564.1,0.002]
[1762839035694,1.4754,3564.2,3564.1,2.80775741]
[1762839035889,1.4754,3564.2,3564.1,0.002]
[1762839041610,2.1344,3564.2,3564.1,0.002]
[1762839045525,0.9856,3564.2,3564.1,2.80775741]
[1762839046093,0.5,3564.2,3564.1,2.80775741]
[1762839046420,0.5,3564.5,3564.1,4.79586958]
[1762839046599,0.5,3564.5,3564.4,2.80552126]
[1762839047014,0.9856,3564.5,3564.4,2.80552126]
[1762839047214,0.5,3564.5,3564.3,2.80556944]
[1762839047414,0.9856,3564.5,3564.3,2.80556944]
[1762839047626,0.4856,3564.4,3564.1,0.002]
[1762839048023,0.4856,3564.4,3564.1,2.80775741]
[1762839048024,0.9856,3564.2,3564.1,2.80775741]
[1762839048314,0.9856,3564.2,3564.1,0.002]
[1762839048532,1.4754,3564.2,3564.1,0.002]
[1762839053447,2.1344,3564.2,3564.1,0.002]
[1762839056461,4.94007869,3564.2,3564.1,0.002]
[1762839057437,2.1344,3564.2,3564.1,0.002]
[1762839058766,4.94007869,3564.2,3564.1,0.002]
[1762839059061,2.1344,3564.2,3564.1,0.002]
[1762839059565,4.94007869,3564.2,3564.1,0.002]
[1762839059770,4.28107869,3564.2,3564.1,0.002]
[1762839060063,2.1344,3564.2,3564.1,0.002]
[1762839060865,1.4754,3564.2,3564.1,0.002]
[1762839061068,2.1344,3564.2,3564.1,0.002]
[1762839061528,4.94007869,3564.2,3564.1,0.002]
[1762839062142,2.1344,3564.2,3564.1,0.002]
[1762839063044,4.94007869,3564.2,3564.1,0.002]
[1762839063948,0.5,3564.2,3564.1,0.4928]
[1762839064148,0.1967,3564.9,3564.1,0.6192]
[1762839064372,1.1478,3564.8,3564.1,0.6192]
[1762839064573,0.5,3564.2,3564.1,0.6192]
[1762839064772,0.5,3564.2,3564.1,3.42495741]
[1762839064944,0.5,3564.2,3564.1,3.91205741]
[1762839065278,0.001,3565.0,3564.7,2.80527114]
[1762839065495,0.4783,3564.8,3564.1,0.002]
[1762839065783,0.5,3564.2,3564.1,0.002]
[1762839065944,0.5,3564.2,3564.1,0.1284]
[1762839066144,0.5,3564.2,3564.1,0.6192]
[1762839066543,0.5,3564.2,3564.1,3.42495741]
[1762839067359,0.5,3564.4,3564.3,2.8055285]
[1762839067560,0.5,3564.4,3564.1,0.6192]
[1762839067759,0.659,3564.6,3564.1,0.4928]
[1762839067959,0.659,3564.6,3564.1,3.29853668]
[1762839067960,0.5,3564.2,3564.1,3.29853668]
[1762839068286,0.5,3564.2,3564.1,3.29855741]
[1762839068654,0.5,3564.2,3564.1,0.4928]
[1762839068866,0.5,3564.2,3564.1,3.29855741]
[1762839069804,0.9783,3564.2,3564.1,0.002]
[1762839072983,1.4671,3564.2,3564.1,0.002]
[1762839073265,0.9783,3564.2,3564.1,0.002]
[1762839074065,0.5,3564.2,3564.1,0.002]
[1762839074264,0.9783,3564.2,3564.1,0.002]
[1762839075006,2.80582175,3564.1,3563.8,0.002]
[1762839075206,0.8736,3563.9,3563.8,0.002]
[1762839075708,4.82731486,3563.9,3563.8,0.002]
[1762839081678,0.5,3563.9,3563.8,0.002]
[1762839081881,1.158,3563.9,3563.8,0.4928]
[1762839082665,1.6363,3563.9,3563.8,0.002]
[1762839082869,2.1251,3563.9,3563.8,0.002]
[1762839086000,4.93101486,3563.9,3563.8,0.002]
[1762839087917,6.19072686,3563.9,3563.8,0.002]
[1762839088345,6.19072686,3563.9,3563.7,0.002]
[1762839088346,4.56594183,3563.5,3563.4,0.002]
[1762839088576,5.71214183,3563.5,3563.4,0.002]
[1762839088874,6.55495074,3563.5,3563.4,0.002]
[1762839089175,6.66736254,3563.5,3563.4,0.002]
[1762839089366,6.66702921,3563.5,3563.4,0.002]
[1762839089533,6.27865363,3563.5,3563.4,0.002]
[1762839090945,5.62065363,3563.5,3563.4,0.002]
[1762839091263,3.79442983,3563.5,3563.4,0.002]
[1762839091571,0.5,3563.5,3563.4,0.4814]
[1762839091749,1.158,3563.5,3563.4,0.4814]
[1762839091945,1.6462,3563.5,3563.4,0.002]
[1762839092157,1.158,3563.5,3563.4,0.002]
[1762839092464,0.5,3563.5,3563.4,0.9484]
[1762839092655,1.158,3563.5,3563.4,0.9484]
[1762839092860,1.158,3563.5,3563.4,0.4814]
[1762839094070,0.5,3563.5,3563.4,0.9484]
[1762839094243,0.5,3563.5,3563.4,3.75470858]
[1762839094438,0.5,3563.5,3563.4,0.9484]
[1762839094870,0.5,3563.5,3563.4,0.4814]
[1762839096914,0.5,3563.5,3563.4,3.75470858]
[1762839097072,0.658,3563.5,3563.4,0.9484]
[1762839097271,0.658,3563.5,3563.4,3.75470858]
[1762839097765,0.658,3563.5,3563.4,0.9484]
[1762839097981,1.158,3563.5,3563.4,0.4814]
[1762839098176,1.158,3563.5,3563.4,3.75470858]
[1762839098969,1.158,3563.5,3563.4,0.4814]
[1762839099169,1.158,3563.5,3563.4,3.28770858]
[1762839099974,1.158,3563.5,3563.4,0.4814]
[1762839100199,1.158,3563.5,3563.4,3.28770858]
[1762839100401,0.5,3563.5,3563.4,3.75470858]
[1762839100609,0.5,3564.0,3563.9,2.80587077]
[1762839100789,0.997,3564.0,3563.9,0.4794]
[1762839101707,0.5,3564.0,3563.9,3.28531486]
[1762839101896,0.5,3564.3,3563.9,0.9464]
[1762839102209,0.5,3564.3,3564.2,2.80567869]
[1762839102413,0.5,3564.3,3564.2,3.28507869]
[1762839102574,0.5,3564.3,3564.2,3.75207869]
[1762839104297,0.5,3564.3,3564.2,0.9464]
[1762839104701,0.001,3564.5,3564.4,2.80552126]
[1762839104884,0.501,3564.5,3564.4,0.4794]
[1762839105084,0.501,3564.5,3564.4,0.9464]
[1762839105307,0.501,3564.5,3564.4,3.75192126]
[1762839105611,0.001,3564.5,3564.4,3.75192126]
[1762839106320,0.001,3564.5,3564.4,4.84348047]
[1762839106493,0.001,3564.5,3564.4,4.81542526]
[1762839108510,0.001,3564.5,3564.4,4.40992126]
[1762839110698,0.001,3564.5,3564.4,3.94292126]
[1762839110905,0.001,3564.5,3564.4,3.28492126]
[1762839111425,0.001,3564.5,3564.4,3.75192126]
[1762839114610,0.001,3564.5,3564.4,4.15742526]
[1762839115327,0.001,3564.5,3564.4,4.81542526]
[1762839115526,0.001,3564.5,3564.4,3.94292126]
[1762839115740,0.001,3564.5,3564.4,4.42852126]
[1762839118336,0.001,3564.5,3564.4,4.86208047]
[1762839118550,0.001,3564.5,3564.4,4.83402526]
[1762839119901,0.001,3564.5,3564.4,6.12179247]
[1762839120102,0.001,3564.5,3564.4,6.09373726]
[1762839120899,0.001,3564.5,3564.4,11.97172812]
[1762839121099,0.001,3564.5,3564.4,4.95013726]
[1762839121342,0.001,3564.5,3564.4,3.46252126]
[1762839121539,0.001,3564.5,3564.4,3.92072126]
[1762839121705,0.4803,3564.5,3564.4,3.46252126]
[1762839122049,0.5,3564.0,3563.8,2.80598973]
[1762839122524,0.5,3564.0,3563.6,0.002]
[1762839122525,0.5,3563.7,3563.6,0.002]
[1762839122730,0.5,3563.7,3563.6,2.80815108]
[1762839123052,0.5,3563.8,3563.7,2.80607234]
[1762839124548,0.5,3563.8,3563.6,2.80814052]
[1762839124549,0.9793,3563.8,3563.6,2.80814052]
[1762839124854,0.9793,3563.8,3563.6,0.002]
[1762839125155,0.1941,3564.4,3563.9,2.80587106]
[1762839125356,0.5,3564.1,3563.8,2.80597195]
[1762839125554,0.4793,3563.8,3563.7,2.80602071]
[1762839125722,0.5,3563.8,3563.7,2.80602071]
[1762839125919,0.5,3563.8,3563.7,3.26422071]
[1762839126125,0.5,3564.0,3563.7,0.4582]
[1762839126357,0.5,3564.0,3563.8,2.80598717]
[1762839126548,0.4793,3563.8,3563.6,2.80807699]
[1762839126853,0.9793,3563.8,3563.6,2.80807699]
[1762839127018,0.1714,3563.7,3563.6,0.002]
[1762839127220,1.1635,3563.7,3563.6,0.002]
[1762839127420,3.96957234,3563.7,3563.6,0.002]
[1762839127921,1.1635,3563.7,3563.6,0.002]
[1762839129346,3.96957234,3563.7,3563.6,0.002]
[1762839130572,5.22928434,3563.7,3563.6,0.002]
[1762839132556,3.30622983,3563.5,3563.4,0.002]
[1762839132782,5.69914183,3563.5,3563.4,0.002]
[1762839132946,6.19124183,3563.5,3563.4,0.002]
[1762839133148,6.19124183,3563.5,3563.0,0.002]
[1762839133149,3.77966609,3563.2,3563.0,0.002]
[1762839133350,8.29528354,3563.0,3562.1,0.01]
[1762839133581,10.19081312,3563.0,3562.1,0.01]
[1762839133881,10.43252494,3563.0,3562.1,0.01]
[1762839134103,10.79535052,3563.0,3562.1,0.01]
[1762839134612,2.80725394,3562.2,3562.1,0.01]
[1762839134749,9.79193943,3562.2,3562.1,0.01]
[1762839134951,10.28403943,3562.2,3562.1,0.01]
[1762839135575,9.92121385,3562.2,3562.1,0.01]
[1762839136684,10.28403943,3562.2,3562.1,0.01]
[1762839136886,9.92121385,3562.2,3562.1,0.01]
[1762839137454,10.32671785,3562.2,3562.1,0.01]
[1762839137689,4.47262756,3562.0,3560.9,0.002]
[1762839137892,3.30804223,3561.2,3560.9,0.002]
[1762839138048,4.14464223,3561.2,3560.9,0.002]
[1762839138253,4.63674223,3561.2,3560.9,0.002]
[1762839139662,3.97974223,3561.2,3560.9,0.002]
[1762839139989,4.63674223,3561.2,3560.9,0.002]
[1762839140201,1.1717,3561.2,3560.9,0.002]
[1762839140500,0.5,3561.2,3561.1,3.89032108]
[1762839140669,1.157,3561.2,3561.1,3.89032108]
[1762839140897,1.157,3561.2,3561.1,3.40472108]
[1762839141105,0.5,3561.2,3561.1,3.40472108]
[1762839141296,0.5,3561.5,3561.4,2.80783869]
[1762839141487,1.157,3561.5,3561.4,2.80783869]
[1762839141691,1.157,3561.5,3561.4,0.4582]
[1762839142497,0.5,3561.5,3561.4,3.26608453]
[1762839142696,0.5,3561.6,3561.5,2.80773952]
[1762839143428,0.5,3561.8,3561.7,2.80762283]
[1762839143630,0.5,3561.8,3561.7,3.26582283]
[1762839144335,0.5,3562.2,3561.8,2.8075692]
[1762839144508,0.5,3562.7,3562.6,0.4582]
[1762839144833,1.157,3562.7,3562.6,0.4582]
[1762839145033,0.5,3562.8,3562.7,2.80683572]
[1762839145234,0.5,3562.8,3562.7,0.4582]
[1762839145397,0.4867,3562.8,3562.2,2.80723358]
[1762839145596,0.5,3562.5,3562.3,2.8071625]
[1762839145830,0.5,3562.5,3562.4,2.80709633]
[1762839146015,0.5,3562.5,3562.4,3.30079633]
[1762839146539,0.5,3562.5,3562.4,0.4937]
[1762839146710,0.5,3562.5,3562.1,2.80728823]
[1762839147033,0.5,3562.5,3562.4,0.4937]
[1762839148767,0.657,3562.5,3562.0,0.479]
[1762839149265,1.157,3562.5,3562.1,2.80725654]
[1762839149430,0.657,3562.5,3562.0,0.479]
[1762839149638,0.5,3562.4,3562.1,2.80732838]
[1762839150042,0.657,3562.5,3562.1,2.80733275]
[1762839150454,0.5,3562.4,3562.1,2.80733275]
[1762839150767,0.5,3562.4,3562.0,0.479]
[1762839150938,0.5,3562.4,3562.2,2.80725217]
[1762839151140,0.657,3562.5,3561.9,0.1709]
[1762839151329,0.4799,3562.4,3561.3,3.28695608]
[1762839151531,0.5,3561.9,3561.5,2.80774224]
[1762839151734,0.5,3561.9,3561.6,2.80770302]
[1762839151946,0.5,3561.9,3561.8,0.4937]
[1762839152173,0.5,3561.9,3561.4,0.479]
[1762839152343,0.5,3561.9,3561.6,2.80771275]
[1762839153396,0.4867,3561.7,3561.1,2.94651109]
[1762839153534,0.5,3561.4,3561.3,2.80796338]
[1762839153969,0.5,3561.4,3561.3,3.30166338]
[1762839154873,0.5,3561.5,3561.4,2.80788453]
[1762839155365,0.5,3561.5,3561.4,3.30158453]
[1762839155530,0.5,3561.9,3561.4,0.9727]
[1762839155734,1.157,3561.9,3561.7,2.80759578]
[1762839155967,1.157,3561.9,3561.8,0.4937]
[1762839156174,0.5,3562.3,3562.1,2.8072845]
[1762839156353,0.5,3562.3,3562.2,0.6646]
[1762839156554,0.5,3562.3,3562.2,3.47185394]
[1762839156880,0.501,3562.3,3562.2,3.47185394]
[1762839157563,0.001,3562.3,3562.2,3.47185394]
[1762839158284,0.001,3562.3,3562.2,3.95085394]
[1762839159296,0.001,3562.3,3562.1,2.80726911]
[1762839159606,0.501,3562.3,3562.1,2.80726911]
[1762839159877,0.501,3562.3,3562.2,3.30095394]
[1762839160200,0.501,3562.3,3561.6,0.657]
[1762839160201,0.4867,3562.2,3561.6,0.657]
[1762839160339,0.5,3561.8,3561.7,2.80759539]
[1762839160684,0.5,3561.8,3561.1,0.6174]
[1762839160685,0.5,3561.8,3561.4,2.80788453]
[1762839160847,0.5,3561.7,3561.3,2.80796286]
[1762839161042,0.5,3561.7,3561.4,2.80788453]
[1762839161239,0.5,3561.7,3561.6,3.30142686]
[1762839162366,0.4867,3561.7,3561.3,2.80794794]
[1762839162544,0.5,3561.4,3561.3,2.80794794]
[1762839162945,0.657,3561.8,3561.6,2.80770775]
[1762839163172,0.5,3561.6,3561.4,2.80782893]
[1762839163484,0.5,3561.6,3561.5,2.80780569]
[1762839164185,0.5,3561.6,3561.3,2.80796273]
[1762839164488,0.5,3561.6,3561.4,2.8078057]
[1762839164792,0.5,3561.6,3561.5,2.80780569]
[1762839165154,0.5,3561.6,3561.5,3.30150569]
[1762839165359,1.157,3561.8,3561.6,2.80770297]
[1762839165555,1.157,3561.8,3561.5,3.30149336]
[1762839165891,1.157,3561.8,3561.1,0.1384]
[1762839165892,0.4867,3561.6,3561.1,0.012]
[1762839166106,0.9837,3561.2,3561.1,0.012]
[1762839166392,5.70845423,3561.2,3561.1,0.012]
[1762839166692,6.18835423,3561.2,3561.1,0.012]
[1762839167263,10.31346105,3561.2,3561.1,0.012]
[1762839167880,9.91730214,3561.2,3561.1,0.012]
[1762839168194,10.70776547,3561.2,3561.1,0.012]
[1762839168389,10.32280614,3561.2,3561.1,0.012]
[1762839168594,6.59385823,3561.2,3561.1,0.012]
[1762839170996,6.70634527,3561.2,3561.1,0.012]
[1762839173188,6.04934527,3561.2,3561.1,0.012]
[1762839173411,6.70634527,3561.2,3561.1,0.012]
[1762839173816,6.30084127,3561.2,3561.1,0.012]
[1762839174113,6.18835423,3561.2,3561.1,0.012]
[1762839175832,6.55518423,3561.2,3561.1,0.012]
[1762839176036,6.96068823,3561.2,3561.1,0.012]
[1762839176236,3.21370394,3561.0,3560.9,0.002]
[1762839176440,8.70516322,3561.0,3560.9,0.002]
[1762839176581,9.17116322,3561.0,3560.9,0.002]
[1762839176782,9.28365975,3561.0,3560.9,0.002]
[1762839178119,9.17116322,3561.0,3560.9,0.002]
[1762839179900,4.21386167,3560.8,3560.7,0.002]
[1762839180226,6.99170367,3560.8,3560.7,0.002]
[1762839180400,7.45770367,3560.8,3560.7,0.002]
[1762839180721,5.15408918,3560.4,3560.3,1e-08]
[1762839180924,9.72246646,3560.4,3560.3,1e-08]
[1762839181083,9.82163646,3560.4,3560.3,1e-08]
[1762839181284,4.20543496,3560.2,3560.1,1e-08]
[1762839181510,5.83197696,3560.2,3560.1,1e-08]
[1762839181710,6.29797696,3560.2,3560.1,1e-08]
[1762839181910,6.95497696,3560.2,3560.1,1e-08]
[1762839182418,7.45497696,3560.2,3560.1,1e-08]
[1762839183189,10.40997696,3560.2,3560.1,1e-08]
[1762839183402,13.95452424,3560.2,3560.1,1e-08]
[1762839184810,9.97569424,3560.2,3560.1,1e-08]
[1762839185012,16.97269424,3560.2,3560.1,1e-08]
[1762839185242,16.68252424,3560.2,3560.1,1e-08]
[1762839185411,17.33952424,3560.2,3560.1,1e-08]
[1762839186424,16.93402024,3560.2,3560.1,1e-08]
[1762839187224,10.13269424,3560.2,3560.1,1e-08]
[1762839187592,5.05964296,3560.2,3560.1,1e-08]
[1762839187793,5.71664296,3560.2,3560.1,1e-08]
[1762839187992,6.58814696,3560.2,3560.1,1e-08]
[1762839188323,4.45693096,3560.2,3560.1,1e-08]
[1762839188523,6.18264296,3560.2,3560.1,1e-08]
[1762839189724,10.5324409,3560.2,3560.1,1e-08]
[1762839190329,17.3724409,3560.2,3560.1,1e-08]
[1762839190729,17.3724409,3560.2,3560.1,0.00200001]
[1762839190941,17.3734409,3560.2,3560.1,0.00200001]
[1762839192539,5.65766258,3559.8,3559.7,1e-08]
[1762839192740,13.05440924,3559.8,3559.7,1e-08]
[1762839192926,13.52040924,3559.8,3559.7,1e-08]
[1762839193654,12.62066258,3559.8,3559.7,1e-08]
[1762839194443,13.52040924,3559.8,3559.7,1e-08]
[1762839194644,3.30962013,3559.2,3559.1,0.01]
[1762839194828,8.95717941,3559.2,3559.1,0.01]
[1762839195031,9.42317941,3559.2,3559.1,0.01]
[1762839195758,8.95717941,3559.2,3559.1,0.01]
[1762839195920,5.41263213,3559.2,3559.1,0.01]
[1762839197369,5.87863213,3559.2,3559.1,0.01]
[1762839198282,16.56843007,3559.2,3559.1,1e-08]
[1762839198480,17.06843007,3559.2,3559.1,1e-08]
[1762839199136,13.68343007,3559.2,3559.1,1e-08]
[1762839199769,10.72843007,3559.2,3559.1,1e-08]
[1762839204561,10.32868341,3559.2,3559.1,1e-08]
[1762839204888,10.72843007,3559.2,3559.1,1e-08]
[1762839205069,10.32868341,3559.2,3559.1,1e-08]
[1762839205271,10.72843007,3559.2,3559.1,1e-08]
[1762839208057,10.32868341,3559.2,3559.1,1e-08]
[1762839208395,10.72843007,3559.2,3559.1,1e-08]
[1762839208555,11.15857277,3559.2,3559.1,0.00200001]
[1762839208748,11.15957277,3559.2,3559.1,0.00200001]
[1762839209048,10.72943007,3559.2,3559.1,0.00200001]
[1762839209452,10.07243007,3559.2,3559.1,0.00200001]
[1762839209647,10.07243007,3559.2,3558.7,1e-08]